Cogmind - Beta 14 @@@ ROGUE MODE // 2024.08.10 @ 17:22:15 Player: muurn Result: Destroyed by G-34 Mercenary with Small Laser Performance ------------- Evolutions (0) 0 Regions Visited (1) 200 Robots Destroyed (27) 135 Value Destroyed (663) 663 Prototype IDs (2) 40 Alien Tech Used (0) 0 Bonus (0) 0 TOTAL SCORE: 1038 Bonus ------- None Cogmind --------- Core Integrity 0/250 Matter 229/300 Energy 250/250 System Corruption 1% Temperature Cool (26) Movement Treading (160) Location -10/Materials Parts ------- > --- POWER (1) -------- Ion Engine > --- PROPULSION (2) --- Light Treads Light Treads > --- UTILITY (2) ------ Large Storage Unit Terrain Scanner > --- WEAPON (2) ------- EM Pulse Gun Light Assault Rifle > --- INVENTORY (15) --- Medium Storage Unit Small Battery (100) Visual Processing Unit Terrain Scan Processor Utility Shielding Tractor Beam Light Assault Rifle Peak State ------------ > --- POWER ------------ Ion Engine > --- PROPULSION ------- Light Treads Light Treads > --- UTILITY ---------- Large Storage Unit Terrain Scanner > --- WEAPON ----------- EM Pulse Gun Light Assault Rifle > --- INVENTORY -------- Medium Storage Unit Small Battery Visual Processing Unit Terrain Scan Processor Utility Shielding Tractor Beam Beam Cannon Light Assault Rifle [Rating: 8] Favorites ----------- Power Ion Engine Engine Ion Engine Propulsion Light Treads Treads Light Treads Utility Large Storage Unit Device Tractor Beam Storage Large Storage Unit Protection Utility Shielding Weapon Light Assault Rifle Energy Gun EM Pulse Gun Energy Cannon Beam Cannon Ballistic Gun Light Assault Rifle Launcher Grenade Launcher Slashing Weapon Mining Claw Build | -11 -10 ------- Run | Yrd Mat Slots Evolved . | . . Power . | . . Propulsion . | . . Utility . | . . Weapon . | . . Parts Attached 34 | 5 29 Power 3 | 1 2 Engine 3 | 1 2 Core . | . . Reactor . | . . Propulsion 7 | 2 5 Treads 7 | 2 5 Leg . | . . Wheel . | . . Hover . | . . Flight . | . . Utility 6 | 1 5 Device 2 | . 2 Storage 3 | 1 2 Processor . | . . Hackware . | . . Protection 1 | . 1 Artifact . | . . Weapon 18 | 1 17 Energy Gun 1 | . 1 Energy Cannon 1 | . 1 Ballistic Gun 10 | 1 9 Ballistic Cannon . | . . Launcher 5 | . 5 Special Weapon . | . . Impact Weapon . | . . Slashing Weapon 1 | . 1 Piercing Weapon . | . . Special Melee Weapon . | . . Unidentified Prototypes . | . . Parts Lost 3 | . 3 Power 1 | . 1 Propulsion 1 | . 1 Utility . | . . Weapon 1 | . 1 Highest Loss Streak 2 | . 2 To Critical Strikes . | . . Average Slot Usage (%) 89 | . 89 Engine 12 | . 12 Treads 26 | . 26 Device 4 | . 4 Storage 14 | . 14 Protection 3 | . 3 Energy Gun 1 | . 1 Energy Cannon 1 | . 1 Ballistic Gun 19 | . 19 Launcher 4 | . 4 Peak Build Rating 8 | 5 8 Average Rating 6 | 3 6 On Entrance 2 | . 5 Naked Turns . | . . Heaviest Build 32 | 9 32 Greatest Support 40 | 40 40 Greatest Overweight (x) 1 | . 1 Average Overweight (x) . | . . Largest Inventory Capacity 15 | 8 15 Average Capacity 13 | 6 14 Most Carried 10 | 3 10 Average Carried 4 | . 4 Final Capacity 15 | 8 15 Final Carried 7 | 1 7 Class Distribution -------------------- 100% | Mutant Dominant Class ---------------- Mutant | -10/Materials Resources | -11 -10 ----------- Run | Yrd Mat Matter Collected 722 | 210 512 Remotely 98 | . 98 Salvage Created 790 | . 790 Parts 57 | . 57 Haulers Intercepted . | . . Recyclers Shooed . | . . Parts Field Recycled . | . . Retrieved Matter . | . . Parts Self-Destructed . | . . Prevented . | . . Kills | -11 -10 ------- Run | Yrd Mat Combat Hostiles Destroyed 18 | . 18 Guns 8 | . 8 Cannons 3 | . 3 AOE 7 | . 7 Classes Destroyed 6 | . 6 Worker 3 | . 3 Builder 2 | . 2 Recycler 1 | . 1 Watcher 3 | . 3 Swarmer 3 | . 3 Grunt 15 | . 15 Best Kill Streak 5 | . 5 Combat Bots Only 4 | . 4 Max Kills in Single Turn 2 | . 2 Gunslinging . | . . Exploded 1 | . 1 Melee . | . . Uniques/NPCs Destroyed . | . . Combat | -11 -10 -------- Run | Yrd Mat Hostile Shots Fired 71 | . 71 Missed 25 | . 25 Damage Taken 962 | . 962 Core 257 | . 257 Absorbed by Shields . | . . Regen/Repaired (Parts) 249 | . 249 Core Remaining (%) 100 | 100 . Volleys Fired 54 | . 54 Largest 2 | . 2 Hottest 90 | . 90 Shots Fired 94 | . 94 Gun 67 | . 67 Cannon 13 | . 13 Launcher 14 | . 14 Special . | . . Kinetic 66 | . 66 Thermal 13 | . 13 Explosive 14 | . 14 Electromagnetic 1 | . 1 Robot Hit Streak 5 | . 5 Robot Miss Streak 2 | . 2 Penetration Max . | . . Secondary Targets . | . . Shots Hit Robots 48 | . 48 Core Hits 46 | . 46 Critical Kills 1 | . 1 Critical Parts Destroyed . | . . Critical Strikes 1 | . 1 Destroy 1 | . 1 Melee Attacks . | . . Impact . | . . Slashing . | . . Piercing . | . . Sneak Attacks . | . . Combat Hostiles . | . . Follow-up Attacks . | . . Damage Inflicted 1358 | . 1358 Guns 371 | . 371 Cannons 120 | . 120 Explosions 867 | . 867 Melee . | . . Ramming . | . . Kinetic 356 | . 356 Thermal 120 | . 120 Explosive 659 | . 659 Electromagnetic 223 | . 223 Impact . | . . Slashing . | . . Piercing . | . . Highest Corruption 1 | . 1 Average Corruption 1 | . 1 Corruption Purged . | . . Corruption Blocked . | . . Effects 10 | . 10 Matter Fused 1 | . 1 Heat Flow Errors 2 | . 2 Energy Discharges 4 | . 4 Data Loss (minor) 2 | . 2 Weapon Failures 1 | . 1 Overload Shots . | . . Overflow Damage . | . . Projectiles . | . . Explosions . | . . Melee . | . . Knockbacks . | . . Impact . | . . Kinetic . | . . Secondary . | . . Self-Inflicted Damage 95 | . 95 Shots 5 | . 5 Rammed . | . . Targets Rammed . | . . Kicked . | . . Crushed . | . . Highest Temperature 251 | . 251 Average Temperature 67 | . 67 Received Heat Transfer 285 | . 285 Siege Activations . | . . Robots Corrupted . | . . Combat Hostiles . | . . Parts Fried . | . . Impact Corruptions . | . . Robots Melted . | . . Combat Hostiles . | . . Parts Melted . | . . Heat Transferred 259 | . 259 Parts Sabotaged . | . . Parts Stolen . | . . Parts Stripped . | . . Power Chain Reactions . | . . Alert | -11 -10 ------- Run | Yrd Mat Peak Influence 295 | . 295 Initial . | . . Average 141 | . 149 Maximum Alert Level 1 | . 1 Low Security (%) 58 | 100 56 Level 1 41 | . 43 Level 2 . | . . Level 3 . | . . Level 4 . | . . Level 5 . | . . High Security . | . . Max Security . | . . Squads Dispatched 5 | . 5 Investigation 5 | . 5 Extermination . | . . Reinforcement . | . . Assault . | . . Garrison . | . . Intercept . | . . Searches Triggered . | . . Construction Impeded . | . . Haulers Reinforced . | . . Active Scanning Responses . | . . Cargo Convoy Interrupts . | . . Stealth | -11 -10 --------- Run | Yrd Mat Distress Signals . | . . Communications Jammed . | . . Distress Signals . | . . Times Spotted 23 | . 23 Peak Tracking Total 3 | . 3 Tactical Retreats . | . . Traps | -11 -10 ------- Run | Yrd Mat Traps Triggered 3 | . 3 Indirectly . | . . Trap Hack Attempts . | . . Triggered . | . . Disarmed . | . . Reprogrammed . | . . Reused . | . . Traps Extracted . | . . Installed . | . . Triggered . | . . Machines | -11 -10 ---------- Run | Yrd Mat Machines Disabled 3 | . 3 Max in Single Turn 2 | . 2 Machines Repaired . | . . Machines Dismantled . | . . Machines Sabotaged . | . . Overloaded Fab Kills . | . . Hacking | -11 -10 --------- Run | Yrd Mat Machines Accessed 7 | . 7 Terminals 5 | . 5 Fabricators . | . . Repair Stations 1 | . 1 Recycling Units 1 | . 1 Scanalyzers . | . . Garrison Access . | . . Total Hacks 30 | . 30 Successful 22 | . 22 Failed 8 | . 8 Catastrophic . | . . Database Lockouts . | . . Manual . | . . Terminals 17 | . 17 Fabricators . | . . Repair Stations 8 | . 8 Recycling Units 5 | . 5 Scanalyzers . | . . Garrison Access . | . . Terminal Hacks 13 | . 13 Record 8 | . 8 Robot Analysis 1 | . 1 Prototype ID Bank 1 | . 1 Alert Level 1 | . 1 Hauler Manifests 1 | . 1 Zone Layout 1 | . 1 Fabricator Hacks . | . . Repair Station Hacks 6 | . 6 Scan Component 3 | . 3 Repair 3 | . 3 Recycling Unit Hacks 3 | . 3 Recycle Component 1 | . 1 Process 1 | . 1 Retrieve Components 1 | . 1 Scanalyzer . | . . Garrison Access Hacks . | . . Unauthorized Hacks . | . . Terminals . | . . Fabricators . | . . Repair Stations . | . . Recycling Units . | . . Scanalyzers . | . . Garrison Access . | . . Data Cores Recovered . | . . Used . | . . Hacking Detections 7 | . 7 Full Trace Events 6 | . 6 Feedback Events . | . . Feedback Blocked . | . . Robot Schematics Acquired . | . . Robots Built . | . . Authchips . | . . Time . | . . Total Robot Build Rating . | . . Part Schematics Acquired . | . . Parts Built . | . . Authchips . | . . Time . | . . Total Part Build Rating . | . . Parts Repaired 3 | . 3 Time 78 | . 78 Parts Recycled 1 | . 1 Recycled Matter 66 | . 66 Retrieved Matter . | . . Retrieved Components . | . . Parts Scanalyzed . | . . Part Schematics Acquired . | . . Parts Damaged . | . . Bothacking | -11 -10 ------------ Run | Yrd Mat Used RIF Installer . | . . Robots Hacked . | . . Non-combat . | . . Combat . | . . Robot Hacks Applied . | . . Relay Couplers Released . | . . Fabnet Peak Effective % . | . . Robots Rewired . | . . Allies Hacked . | . . Hacks Repelled . | . . Allies | -11 -10 -------- Run | Yrd Mat Total Allies . | . . Largest Group . | . . Highest-Rated Group . | . . Highest-Rated Ally . | . . Total Orders . | . . Ally Attacks . | . . Total Damage . | . . Kills . | . . Allies Corrupted . | . . Allies Melted . | . . Intel | -11 -10 ------- Run | Yrd Mat Robot Analysis Total 1 | . 1 Derelict Logs Recovered . | . . Drone Launches . | . . Drone Recoveries . | . . Exploration | -11 -10 ------------- Run | Yrd Mat Turns Passed 1246 | 65 1181 Spaces Moved 624 | 39 585 Core 7 | 7 . Treads 617 | 32 585 Legs . | . . Wheels . | . . Hover . | . . Flight . | . . Fastest Speed 50 | 50 160 Average Speed 165 | 140 167 Slowest Speed 240 | 160 240 Overloaded Moves . | . . Propulsion Burnouts . | . . Robots Hopped . | . . Cave-ins Triggered 1 | . 1 Exploration Rate (%) 43 | 5 81 Regions Visited 1 Branch Regions . Pre-discovered Areas . | . . Known Exits Taken . | . . Unknown Exits Taken 1 | 1 . Scrap Searched . | . . Spaces Dug . | . . Terrain Destroyed 84 | . 84 Melee . | . . Projectile . | . . AOE 84 | . 84 Terrain Rammed . | . . Walls Destroyed . | . . Machines Disabled . | . . Actions | -11 -10 --------- Run | Yrd Mat Total 754 | 49 705 Wait . | . . Move 623 | 38 585 Hop . | . . Pick Up 31 | 6 25 Fast Attach . | . . Attach 30 | 5 25 Detach 8 | . 8 Swap 4 | . 4 Drop 4 | . 4 Fire 54 | . 54 Melee . | . . Ram . | . . Kick . | . . Crush . | . . Escape Stasis . | . . Rewire . | . . Trap . | . . Miscellaneous . | . . Route ------- -11/Scrapyard -10/Materials (discovered 3 exits: [*Mat x2] / [*Min]) History --------- Turn | Location | Event 4 | -11/Scrapyard | Discovered new exit (range 15) 66 | -11/Scrapyard | Entered Materials 324 | -10/Materials | Build established: Mutant 386 | -10/Materials | Crushed by falling debris 386 | -10/Materials | Core integrity fell below 50% 506 | -10/Materials | Discovered new exit (range 12) 611 | -10/Materials | Core integrity fell below 20% 917 | -10/Materials | Discovered new exit (range 16) 1080 | -10/Materials | Discovered new exit (range 13) 1136 | -10/Materials | Repaired Ion Engine 1166 | -10/Materials | Repaired Lgt. Treads 1209 | -10/Materials | Repaired Lgt. Treads 1247 | -10/Materials | Destroyed by G-34 Mercenary with Small Laser Last Messages --------------- Rating: 1 Time: 26 >>Repair Repairing Lgt. Treads... ETC: 26 System corrupted: Component data lost. Repair station completes Lgt. Treads repairs. System corrupted: Energy discharge (-92). Acquired Lgt. Treads. Connecting with Recycling Unit... >>Recycling(Process) Analyzing inventory... Recycling at 100% efficiency: Hcp. Storage Unit (66) >>Recycle(Beam Cannon) Accepting Beam Cannon... Connecting with Recycling Unit... ALERT: Suspicious activity at Recycling Unit M001. Dispatching Investigation squad. G-34 Mercenary destroyed. Map ----- +----------------------------------------------------+ | """"" + #####+########+##???? | | """ # = ^ #???? | | # %* #???? | | ####### [% """ #???? | | #???## =###########+## """ ##??? | | #???## #??# # """ #???? | | #???# #??# # #???? | | ###?## #??# / #???? | | #T#### ##??# # #???? | | # #???# # #???? | | # #???# # #??#? | | # #???# # ![! #???? | | ## # #???# # ![! #???? | | #] # #???########+## [! #???? | | # # #??????##??# #???? | | # # #??#???????# #???? | | # # #???#?????## #???? | | # #????#?????# #???? | | ####????#?????# #???? | | * #???#??????#?##+###+### #???? | | ## % #?#??????????# # #???? | | ?# = #?###????????# """ #g #???? | | ?# ##??????#????# """ %g #???? | | ?# #??#?#????#### """ # ##??? | | ?##%! ##?????????#""" # < #?#?? | | ??#= #??????????#"R "" @ #? ##??? | | ??# #????#?????#""" "Y #?###?#?? | | ??# < #???#?#????#### "" #??#?#??# | | ??# ^#?????????????# #???????? | | ??#####?????????#???##########???#???? | | ??????????????????????????#???#??????# | | ?????????????????????????#???????????? | | ????????????????????#???#???#????????? | | ????????????????????????????#?##?????? | | | | | | | | | | | | | | | | | | | | | | | | | | | | | | | | | +----------------------------------------------------+ Best States ------------- Heat Dissipation 25 Energy Generation 10 Energy Capacity 250 Matter Stores 300 Matter Capacity 300 Sight Range 16 Terrain Scan Range 14 Terrain Scan Density 10 Utility Shielding 33 Evasion (%) 40 Recoil Reduction 2 Item Schematics ----------------- None Robot Schematics ------------------ None Fabricated ------------ Nothing Alien Tech Used ----------------- None Achievements -------------- Unlikely Earthworm Challenges ------------ None Game ------ Seed TechThrowingMask Manual? 0 Play Time 00:17:36 Cumulative 0.7 hours Start 2024.08.10 @ 17:07:28 End 2024.08.10 @ 17:22:15 Sessions 1 Manual Loads 0 Difficulty Rogue Special Mode None Game No. 4 Rogue 4 Adventurer 0 Explorer 0 Win Type - Total 0 Types 0/0/0/0/0/0/0/0/0 Lore% 1 Gallery% 3 Achievement% 3 Wizard Run 0 Options --------- Layout 1 ASCII 0 Keyboard 0 Movement Mouse Keybinds 0 Fullscreen 1 Font 48/Terminus++ Map View 50x35 Zoom Use 0% Tactical HUD 0 Map Filters NONE Filters NONE Steam 1 RUN: 9460e410-d5ed-4fcc-a28b-aee6e7b2bc65